Workbook

Sheet Anexo I - BO
A3: MUNICÍPIO DE SANTO ANTONIO DO ARACANGUÁ
A4: RELATÓRIO RESUMIDO DA EXECUÇÃO ORÇAMENTÁRIA
A5: BALANÇO ORÇAMENTÁRIO
A6: ORÇAMENTOS FISCAL E DA SEGURIDADE SOCIAL
A7: PERÍODO:- Janeiro a Abril de 2013 - BIMESTRE:- Março - Abril
A9: RREO - Anexo I (LRF, Art. 52, inciso I, alíneas "a" e "b" do inciso II e §1º) | J9: 1
B10: PREVISÃO | C10: PREVISÃO | D10: RECEITAS REALIZADAS | J10: SALDO A
A11: RECEITAS | B11: INICIAL | C11: ATUALIZADA | D11: No Bimestre | F11: % | G11: Até o Bimestre | I11: % | J11: REALIZAR
C12: (a) | D12: (b) | F12: (b/a) | G12: (c) | I12: (c/a) | J12: (a-c)
A13: RECEITAS (EXCETO INTRA-ORÇAMENTÁRIAS) (I) | B13: =B14+B49 -> 36000000 | C13: =C14+C49 -> 36000000 | D13: =D14+D49 -> 5188172.22 | F13: =D13/C13 -> 0.144115895 | G13: =G14+G49 -> 10682781.95 | I13: =G13/C13 -> 0.2967439431 | J13: =C13-G13 -> 25317218.05
A14: RECEITAS CORRENTES | B14: =B15+B19+B22+B28+B32+B36+B37+B44 -> 35930000 | C14: =C15+C19+C22+C28+C32+C36+C37+C44 -> 35930000 | D14: =D15+D19+D22+D28+D32+D36+D37+D44 -> 5113404.73 | F14: 0.1423157453 | G14: =G15+G19+G22+G28+G32+G36+G37+G44 -> 10508760.62 | I14: 0.2924787259 | J14: 25421239.38
A15: RECEITA TRIBUTÁRIA | B15: =B16+B17+B18 -> 2525000 | C15: =C16+C17+C18 -> 2525000 | D15: =D16+D17+D18 -> 152756.96 | F15: 0.06049780594 | G15: =G16+G17+G18 -> 368764.55 | I15: 0.1460453663 | J15: 2156235.45
A16: Impostos | B16: 2410000 | C16: 2410000 | D16: 146581.71 | F16: 0.06082228631 | G16: 355632.41 | I16: 0.1475653154 | J16: 2054367.59
A17: Taxas | B17: 115000 | C17: 115000 | D17: 6175.25 | F17: 0.05369782609 | G17: 13132.14 | I17: 0.1141925217 | J17: 101867.86
A18: Contribuição de Melhoria | B18: 0 | C18: 0 | D18: 0 | G18: 0 | J18: 0
A19: RECEITA DE CONTRIBUIÇÕES | B19: =B20+B21 -> 0 | C19: =C20+C21 -> 0 | D19: =D20+D21 -> 0 | G19: =G20+G21 -> 0 | J19: 0
A20: Contribuições Sociais | B20: 0 | C20: 0 | D20: 0 | G20: 0 | J20: 0
A21: Contribuições Econômicas | B21: 0 | C21: 0 | D21: 0 | G21: 0 | J21: 0
A22: RECEITA PATRIMONIAL | B22: =B23+B24+B25+B26+B27 -> 200000 | C22: =C23+C24+C25+C26+C27 -> 200000 | D22: =D23+D24+D25+D26+D27 -> 12100.08 | F22: 0.0605004 | G22: =G23+G24+G25+G26+G27 -> 26004.97 | I22: 0.13002485 | J22: 173995.03
A23: Receitas Imobiliárias | B23: 0 | C23: 0 | D23: 0 | G23: 0 | J23: 0
A24: Receitas de Valores Mobiliários | B24: 190000 | C24: 190000 | D24: 11362.08 | F24: 0.05980042105 | G24: 25266.97 | I24: 0.1329840526 | J24: 164733.03
A25: Receita de Concessões e Permissões | B25: 0 | C25: 0 | D25: 0 | G25: 0 | J25: 0
A26: Compensações Financeiras | B26: 0 | C26: 0 | D26: 0 | G26: 0 | J26: 0
A27: Outras Receitas Patrimoniais | B27: 10000 | C27: 10000 | D27: 738 | F27: 0.0738 | G27: 738 | I27: 0.0738 | J27: 9262
A28: RECEITA AGROPECUÁRIA | B28: =B29+B30+B31 -> 0 | C28: =C29+C30+C31 -> 0 | D28: =D29+D30+D31 -> 0 | G28: =G29+G30+G31 -> 0 | J28: 0
A29: Receita da Produção Vegetal | B29: 0 | C29: 0 | D29: 0 | G29: 0 | J29: 0
A30: Receita da Produção Animal e Derivados | B30: 0 | C30: 0 | D30: 0 | G30: 0 | J30: 0
A31: Outras Receitas Agropecuárias | B31: 0 | C31: 0 | D31: 0 | G31: 0 | J31: 0
A32: RECEITA INDUSTRIAL | B32: =B33+B34+B35 -> 0 | C32: 0 | D32: =D33+D34+D35 -> 0 | G32: =G33+G34+G35 -> 0 | J32: 0
A33: Receita da Indústria de Transformação | B33: 0 | C33: 0 | D33: 0 | G33: 0 | J33: 0
A34: Receita da Indústria de Construção | B34: 0 | C34: 0 | D34: 0 | G34: 0 | J34: 0
A35: Outras Receitas Industriais | B35: 0 | C35: 0 | D35: 0 | G35: 0 | J35: 0
A36: RECEITA DE SERVIÇOS | B36: 363000 | C36: 363000 | D36: 55647.71 | F36: 0.1532994766 | G36: 80845.43 | I36: 0.2227146832 | J36: 282154.57
A37: TRANSFERÊNCIAS CORRENTES | B37: =B38+B39+B40+B41+B42+B43 -> 32299000 | C37: =C38+C39+C40+C41+C42+C43 -> 32299000 | D37: =D38+D39+D40+D41+D42+D43 -> 4775307.61 | F37: 0.1478469182 | G37: =G38+G39+G40+G41+G42+G43 -> 9841001.66 | I37: 0.3046844069 | J37: 22457998.34
A38: Transferências Intergovernamentais | B38: 32094000 | C38: 32094000 | D38: 4744969.41 | F38: 0.1478459964 | G38: 9774886.47 | I38: 0.3045705263 | J38: 22319113.53
A39: Transferências de Instituições Privadas | B39: 5000 | C39: 5000 | D39: 2205 | F39: 0.441 | G39: 2940 | I39: 0.588 | J39: 2060
A40: Transferências do Exterior | B40: 0 | C40: 0 | D40: 0 | G40: 0 | J40: 0
A41: Transferências de Pessoas | B41: 0 | C41: 0 | D41: 0 | G41: 0 | J41: 0
A42: Transferências de Convênios | B42: 200000 | C42: 200000 | D42: 28133.2 | F42: 0.140666 | G42: 63175.19 | I42: 0.31587595 | J42: 136824.81
A43: Transferências para o Combate à Fome | B43: 0 | C43: 0 | D43: 0 | G43: 0 | J43: 0
A44: OUTRAS RECEITAS CORRENTES | B44: =B45+B46+B47+B48 -> 543000 | C44: =C45+C46+C47+C48 -> 543000 | D44: =D45+D46+D47+D48 -> 117592.37 | F44: 0.2165605341 | G44: =G45+G46+G47+G48 -> 192144.01 | I44: 0.353856372 | J44: 350855.99
A45: Multas e Juros de Mora | B45: 111000 | C45: 111000 | D45: 12428.44 | F45: 0.1119679279 | G45: 15700.06 | I45: 0.141441982 | J45: 95299.94
A46: Indenizações e Restituições | B46: 17000 | C46: 17000 | D46: 28932.72 | F46: =D46/C46 -> 1.701924706 | G46: 28932.71 | I46: =G46/C46 -> 1.701924118 | J46: =C46-G46 -> -11932.71
A47: Receita da Dívida Ativa | B47: 415000 | C47: 415000 | D47: 76203.21 | F47: 0.1836221928 | G47: 147455.24 | I47: 0.3553138313 | J47: 267544.76
A48: Receitas Correntes Diversas | B48: 0 | C48: 0 | D48: 28 | G48: 56 | J48: -56
A49: RECEITAS DE CAPITAL | B49: =B50+B53+B56+B57+B65 -> 70000 | C49: =C50+C53+C56+C57+C65 -> 70000 | D49: =D50+D53+D56+D57+D65 -> 74767.49 | F49: 1.068107 | G49: =G50+G53+G56+G57+G65 -> 174021.33 | I49: 2.486019 | J49: -104021.33
A50: OPERAÇÕES DE CRÉDITO | B50: =B51+B52 -> 0 | C50: =C51+C52 -> 0 | D50: =D51+D52 -> 0 | G50: =G51+G52 -> 0 | J50: 0
A51: Operações de Crédito Internas | B51: 0 | C51: 0 | D51: 0 | G51: 0 | J51: 0
A52: Operações de Crédito Externas | B52: 0 | C52: 0 | D52: 0 | G52: 0 | J52: 0
A53: ALIENAÇÃO DE BENS | B53: =B54+B55 -> 0 | C53: =C54+C55 -> 0 | D53: =D54+D55 -> 0 | G53: =G54+G55 -> 0 | J53: 0
A54: Alienação de Bens Móveis | B54: 0 | C54: 0 | D54: 0 | G54: 0 | J54: 0
A55: Alienação de Bens Imóveis | B55: 0 | C55: 0 | D55: 0 | G55: 0 | J55: 0
A56: AMORTIZAÇÕES DE EMPRÉSTIMOS | B56: 70000 | C56: 70000 | D56: 17121.59 | F56: 0.2445941429 | G56: 20212.84 | I56: 0.2887548571 | J56: 49787.16
A57: TRANSFERÊNCIAS DE CAPITAL | B57: =B58+B59+B60+B61+B62+B63+B64 -> 0 | C57: =C58+C59+C60+C61+C62+C63+C64 -> 0 | D57: =D58+D59+D60+D61+D62+D63+D64 -> 57645.9 | G57: =G58+G59+G60+G61+G62+G63+G64 -> 153808.49 | J57: -153808.49
A58: Transferências Intergovernamentais | B58: 0 | C58: 0 | D58: 0 | G58: 0 | J58: 0
A59: Transferências de Instituições Privadas | B59: 0 | C59: 0 | D59: 0 | G59: 0 | J59: 0
A60: Transferências do Exterior | B60: 0 | C60: 0 | D60: 0 | G60: 0 | J60: 0
A61: Transferências de Pessoas | B61: 0 | C61: 0 | D61: 0 | G61: 0 | J61: 0
A62: Transferências de Outras Instituições Públicas | B62: 0 | C62: 0 | D62: 0 | G62: 0 | J62: 0
A63: Transferências de Convênios | B63: 0 | C63: 0 | D63: 57645.9 | G63: 153808.49 | J63: -153808.49
A64: Transferências para o Combate à Fome | B64: 0 | C64: 0 | D64: 0 | G64: 0 | J64: 0
A65: OUTRAS RECEITAS DE CAPITAL | B65: =B66+B67+B68 -> 0 | C65: =C66+C67+C68 -> 0 | D65: =D66+D67+D68 -> 0 | G65: =G66+G67+G68 -> 0 | J65: 0
A66: Integralização do Capital Social | B66: 0 | C66: 0 | D66: 0 | G66: 0 | J66: 0
A67: Dív. Atv. Prov. da Amortiz. de Emp. e Financ. | B67: 0 | C67: 0 | D67: 0 | G67: 0 | J67: 0
A68: Receitas de Capital Diversas | B68: 0 | C68: 0 | D68: 0 | G68: 0 | J68: 0
A69: RECEITAS (INTRA-ORÇAMENTÁRIAS) (II) | B69: 0 | C69: 0 | D69: 0 | G69: 0 | J69: 0
A70: SUBTOTAL DAS RECEITAS (III) = (I + II) | B70: =B13+B69 -> 36000000 | C70: =C13+C69 -> 36000000 | D70: =D13+D69 -> 5188172.22 | F70: 0.144115895 | G70: =G13+G69 -> 10682781.95 | I70: 0.2967439431 | J70: 25317218.05
A71: OPERAÇÕES DE CRÉDITO / REFINANCIAMENTO (IV) | D71: =D72+D75 -> 0 | G71: =G72+G75 -> 0 | J71: 0
A72: Operações de Crédito Internas | B72: 0 | C72: 0 | D72: =D73+D74 -> 0 | G72: =G73+G74 -> 0 | J72: 0
A73: Mobiliária | B73: 0 | C73: 0 | D73: 0 | G73: 0 | J73: 0
A74: Contratual | B74: 0 | C74: 0 | D74: 0 | G74: 0 | J74: 0
A75: Operações de Crédito Externas | B75: 0 | C75: 0 | D75: =D76+D77 -> 0 | G75: =G76+G77 -> 0 | J75: 0
A76: Mobiliária | B76: 0 | C76: 0 | D76: 0 | G76: 0 | J76: 0
A77: Contratual | B77: 0 | C77: 0 | D77: 0 | G77: 0 | J77: 0
A78: SUBTOTAL COM REFINANCIAMENTO (V) = (III + IV) | B78: =B70+B71 -> 36000000 | C78: =C70+C71 -> 36000000 | D78: =D70+D71 -> 5188172.22 | F78: 0.144115895 | G78: =G70+G71 -> 10682781.95 | I78: 0.2967439431 | J78: 25317218.05
A79: DÉFICIT (VI) | B79: 0 | C79: 0 | J79: 0
A80: TOTAL (VII) = (V + VI) | B80: =B78+B79 -> 36000000 | C80: =C78+C79 -> 36000000 | D80: =D78+D79 -> 5188172.22 | F80: 0.144115895 | G80: =G78+G79 -> 10682781.95 | I80: 0.2967439431 | J80: 25317218.05
A81: SALDOS DE EXERCÍCIOS ANTERIORES (UTILIZADOS PARA CRÉDITOS ADICIONAIS) | B81: 0 | C81: 0 | D81: - | F81: – | G81: - | I81: – | J81: -
A82: Superávit Financeiro | B82: 0 | C82: 0 | D82: – | F82: – | G82: - | I82: – | J82: –
A83: Reabertura de Créditos Adicionais | B83: 0 | C83: 0 | D83: – | F83: – | G83: - | I83: – | J83: –
B85: DOTAÇÃO | C85: CRÉDITOS | D85: DOTAÇÃO | E85: DESPESAS EMPENHADAS | G85: DESPESAS LIQUIDADAS | J85: SALDO A
A86: DESPESAS | B86: INICIAL | C86: ADICIONAIS | D86: ATUALIZADA | E86: No Bimestre | F86: Até o Bimestre | G86: No Bimestre | H86: Até o Bimestre | I86: % | J86: LIQUIDAR
B87: (d) | C87: (e) | D87: (f)=(d+e) | H87: (g) | I87: (g/f) | J87: (f-g)
A88: DESPESAS (EXCETO INTRA-ORÇAMENTÁRIAS) (VIII) | B88: =B89+B93+B97+B98 -> 36000000 | C88: =D88-B88 -> 2579931.87 | D88: =D89+D93+D97+D98 -> 38579931.87 | E88: =E89+E93 -> 5306983.6 | F88: =F89+F93 -> 18004597.99 | G88: =G89+G93 -> 5273412.01 | H88: =H89+H93 -> 10420778.37 | I88: =H88/D88 -> 0.270108781 | J88: =D88-H88 -> 28159153.5
A89: DESPESAS CORRENTES | B89: =B90+B91+B92 -> 33167630 | C89: 343177.84 | D89: =D90+D91+D92 -> 33510807.84 | E89: =E90+E91+E92 -> 4954553.11 | F89: =F90+F91+F92 -> 15985643.28 | G89: =G90+G91+G92 -> 5098797.86 | H89: =H90+H91+H92 -> 9936815.14 | I89: 0.2965256817 | J89: 23573992.7
A90: PESSOAL E ENCARGOS SOCIAIS | B90: 19883400 | C90: -10000 | D90: 19873400 | E90: 3053242.89 | F90: 6420908.76 | G90: 3053242.89 | H90: 6420908.76 | I90: 0.3230906015 | J90: 13452491.24
A91: JUROS E ENCARGOS DA DÍVIDA | B91: 0 | C91: 0 | D91: 0 | E91: 0 | F91: 0 | G91: 0 | H91: 0 | J91: 0
A92: OUTRAS DESPESAS CORRENTES | B92: 13284230 | C92: 353177.84 | D92: 13637407.84 | E92: 1901310.22 | F92: 9564734.52 | G92: 2045554.97 | H92: 3515906.38 | I92: 0.2578133925 | J92: 10121501.46
A93: DESPESAS DE CAPITAL | B93: =B94+B95+B96 -> 2595870 | C93: 2473254.03 | D93: =D94+D95+D96 -> 5069124.03 | E93: =E94+E95+E96 -> 352430.49 | F93: =F94+F95+F96 -> 2018954.71 | G93: =G94+G95+G96 -> 174614.15 | H93: =H94+H95+H96 -> 483963.23 | I93: 0.0954727537 | J93: 4585160.8
A94: INVESTIMENTOS | B94: 2335870 | C94: 2473254.03 | D94: 4809124.03 | E94: 338714.42 | F94: 1991500.54 | G94: 160898.08 | H94: 456509.06 | I94: 0.0949256158 | J94: 4352614.97
A95: INVERSÕES FINANCEIRAS | B95: 160000 | C95: 0 | D95: 160000 | E95: 0 | F95: 0 | G95: 0 | H95: 0 | I95: 0 | J95: 160000
A96: AMORTIZAÇÃO DA DÍVIDA | B96: 100000 | C96: 0 | D96: 100000 | E96: 13716.07 | F96: 27454.17 | G96: 13716.07 | H96: 27454.17 | I96: 0.2745417 | J96: 72545.83
A97: RESERVA DE CONTINGÊNCIA | B97: 236500 | C97: -236500 | D97: 0 | E97: 0 | F97: 0 | G97: 0 | H97: 0 | J97: 0
A98: RESERVA DO RPPS | B98: 0 | C98: 0 | D98: 0 | E98: 0 | F98: 0 | G98: 0 | H98: 0 | J98: 0
A99: DESPESAS (INTRA-ORÇAMENTÁRIAS) (IX) | B99: 0 | C99: 0 | D99: 0 | E99: 0 | F99: 0 | G99: 0 | H99: 0 | J99: 0
A100: SUBTOTAL DAS DESPESAS (X) = (VIII + IX) | B100: =B88+B99 -> 36000000 | C100: 2579931.87 | D100: =D88+D99 -> 38579931.87 | E100: =E88+E97+E98+E99 -> 5306983.6 | F100: =F88+F97+F98+F99 -> 18004597.99 | G100: =G88+G97+G98+G99 -> 5273412.01 | H100: =H88+H97+H98+H99 -> 10420778.37 | I100: 0.270108781 | J100: 28159153.5
A101: AMORTIZAÇÃO DA DÍV. / REFINANCIAMENTO (XI) | D101: =D102+D105 -> 0 | E101: =E102+E105 -> 0 | F101: =F102+F105 -> 0 | G101: =G102+G105 -> 0 | H101: =H102+H105 -> 0
A102: Amortização da Dívida Interna | B102: 0 | C102: =D102-B102 -> 0 | D102: =D103+D104 -> 0 | E102: =E103+E104 -> 0 | F102: =F103+F104 -> 0 | G102: =G103+G104 -> 0 | H102: =H103+H104 -> 0 | I102: =H102/D102 ->  | J102: =D102-H102 -> 0
A103: Dívida Mobiliária | B103: 0 | C103: 0 | D103: 0 | E103: 0 | F103: 0 | G103: 0 | H103: 0 | J103: 0
A104: Outras Dívidas | B104: 0 | C104: 0 | D104: 0 | E104: 0 | F104: 0 | G104: 0 | H104: 0 | J104: 0
A105: Amortização da Dívida Externa | B105: 0 | C105: 0 | D105: =D106+D107 -> 0 | E105: =E106+E107 -> 0 | F105: =F106+F107 -> 0 | G105: =G106+G107 -> 0 | H105: =H106+H107 -> 0 | J105: 0
A106: Dívida Mobiliária | B106: 0 | C106: 0 | D106: 0 | E106: 0 | F106: 0 | G106: 0 | H106: 0 | J106: 0
A107: Outras Dívidas | B107: 0 | C107: 0 | D107: 0 | E107: 0 | F107: 0 | G107: 0 | H107: 0 | J107: 0
A108: SUBTOTAL C/ REFINANCIAMENTO (XII) = (X + XI) | B108: =B100+B101 -> 36000000 | C108: 2579931.87 | D108: =D100+D101 -> 38579931.87 | E108: =E100+E101 -> 5306983.6 | F108: =F100+F101 -> 18004597.99 | G108: =G100+G101 -> 5273412.01 | H108: =H100+H101 -> 10420778.37 | I108: 0.270108781 | J108: 28159153.5
A109: SUPERÁVIT (XIII) | B109: – | C109: – | D109: – | E109: – | F109: – | G109: – | H109: =G80-H108 -> 262003.58 | I109: – | J109: –
A110: TOTAL (XIV) = (XII + XIII) | B110: =B108 -> 36000000 | C110: 2579931.87 | D110: =D108 -> 38579931.87 | E110: =E108 -> 5306983.6 | F110: =F108 -> 18004597.99 | G110: =SUM(G108:G109) -> 5273412.01 | H110: =SUM(H108:H109) -> 10682781.95 | I110: – | J110: =SUM(J108:J109) -> 28159153.5
A111: FONTE:
A112: Departamento de Finanças
A114: LUIZ CARLOS DOS REIS NONATO | D114: CESAR ROBERTO TOQUETON | H114: MISLENE NAGATE ALVES
A115: Prefeito Municipal | D115: Contabilista - CRC 1SP164476/O-7 | H115: Responsável pelo Controle Interno

Sheet Anexo II - Função
A3: MUNICÍPIO DE SANTO ANTONIO DO ARACANGUÁ
A4: RELATÓRIO RESUMIDO DA EXECUÇÃO ORÇAMENTÁRIA
A5: DEMONSTRATIVO DA EXECUÇÃO DAS DESPESAS POR FUNÇÃO/SUBFUNÇÃO
A6: ORÇAMENTOS FISCAL E DA SEGURIDADE SOCIAL
A7: PERÍODO:- Janeiro a Abril de 2013 - BIMESTRE:- Março - Abril
A9: RREO - Anexo II (LRF, Art. 52, inciso II, alínea "c") | J9: 1
B10: DOTAÇÃO | C10: DOTAÇÃO | D10: DESPESAS EMPENHADAS | F10: DESPESAS LIQUIDADAS | J10: SALDO A
A11: FUNÇÃO/SUBFUNÇÃO | B11: INICIAL | C11: ATUALIZADA | D11: No Bimestre | E11: Até o Bimestre | F11: No Bimestre | G11: Até o Bimestre | H11: % | I11: % | J11: LIQUIDAR
C12: (a) | G12: (b) | H12: (b/total b) | I12: (b/a) | J12: (a-b)
A13: DESPESAS (EXCETO INTRA-ORÇAMENTÁRIAS) (I) | B13: =B15+B18+B24+B30+B33+B41+B44+B54+B57+B61+B64+B68+B71+B74+B77+B80+B83+B87+B91 -> 36000000 | C13: 38579931.87 | D13: 5306983.6 | E13: 18004597.99 | F13: 5273412.01 | G13: 10420778.37 | H13: =G13/G95 -> 1 | I13: =G13/C13 -> 0.270108781 | J13: =C13-G13 -> 28159153.5
A15: LEGISLATIVA | B15: =B16 -> 1344000 | C15: 1344000 | D15: 200575 | E15: 484205.19 | F15: 186874.12 | G15: 409602.73 | H15: =G15/G95 -> 0.03930634694 | I15: =G15/C15 -> 0.304763936 | J15: =C15-G15 -> 934397.27
A16: Ação Legislativa | B16: 1344000 | C16: 1344000 | D16: 200575 | E16: 484205.19 | F16: 186874.12 | G16: 409602.73 | H16: =G16/G95 -> 0.03930634694 | I16: =G16/C16 -> 0.304763936 | J16: =C16-G16 -> 934397.27
A18: ADMINISTRAÇÃO | B18: =B19+B20+B21+B22 -> 5245000 | C18: 5440000 | D18: 847678.57 | E18: 2303382.56 | F18: 738263.9 | G18: 1584412.15 | H18: =G18/G95 -> 0.1520435512 | I18: =G18/C18 -> 0.2912522335 | J18: =C18-G18 -> 3855587.85
A19: Planejamento e Orçamento | B19: 137000 | C19: 137000 | D19: 32037.45 | E19: 75906.62 | F19: 29673.45 | G19: 65637.62 | H19: =G19/G95 -> 0.006298725265 | I19: =G19/C19 -> 0.4791067153 | J19: =C19-G19 -> 71362.38
A20: Administração Geral | B20: 4368000 | C20: 4533000 | D20: 693817.7 | E20: 1852324.18 | F20: 538291.29 | G20: 1232616.29 | H20: =G20/G95 -> 0.1182844742 | I20: =G20/C20 -> 0.2719206464 | J20: =C20-G20 -> 3300383.71
A21: Administração Financeira | B21: 608000 | C21: 638000 | D21: 104090.17 | E21: 340592.22 | F21: 152974.91 | G21: 252007.7 | H21: =G21/G95 -> 0.02418319352 | I21: =G21/C21 -> 0.394996395 | J21: =C21-G21 -> 385992.3
A22: Comunicação Social | B22: 132000 | C22: 132000 | D22: 17733.25 | E22: 34559.54 | F22: 17324.25 | G22: 34150.54 | H22: =G22/G95 -> 0.003277158269 | I22: =G22/C22 -> 0.2587162121 | J22: =C22-G22 -> 97849.46
A24: ASSISTÊNCIA SOCIAL | B24: =B25+B26+B27+B28 -> 1936000 | C24: 2154000 | D24: 206554.83 | E24: 1298535.94 | F24: 277197.5 | G24: 469757.67 | H24: =G24/G95 -> 0.0450789426 | I24: =G24/C24 -> 0.2180861978 | J24: =C24-G24 -> 1684242.33
A25: Assistência ao Idoso | B25: 50000 | C25: 50000 | D25: 0 | E25: 3374.8 | F25: 3374.8 | G25: 3374.8 | H25: =G25/G95 -> 0.0003238529676 | I25: =G25/C25 -> 0.067496 | J25: =C25-G25 -> 46625.2
A26: Assistência ao Portador de Deficiência | B26: 0 | C26: 0 | D26: 0 | E26: 0 | F26: 0 | G26: 0 | H26: =G26/G95 -> 0 | I26: =G26/C26 ->  | J26: =C26-G26 -> 0
A27: Assistência à Criança e ao Adolescente | B27: 253000 | C27: 283000 | D27: 56248.65 | E27: 71535.65 | F27: 13311.65 | G27: 28598.65 | H27: =G27/G95 -> 0.002744387126 | I27: =G27/C27 -> 0.1010553004 | J27: =C27-G27 -> 254401.35
A28: Assistência Comunitária | B28: 1633000 | C28: 1821000 | D28: 150306.18 | E28: 1223625.49 | F28: 260511.05 | G28: 437784.22 | H28: =G28/G95 -> 0.04201070251 | I28: =G28/C28 -> 0.2404086875 | J28: =C28-G28 -> 1383215.78
A30: PREVIDÊNCIA SOCIAL | B30: =B31 -> 150000 | C30: 150000 | D30: 21317.76 | E30: 39267.72 | F30: 21317.76 | G30: 39267.72 | H30: =G30/G95 -> 0.003768213717 | I30: =G30/C30 -> 0.2617848 | J30: =C30-G30 -> 110732.28
A31: Previdência do Regime Estatutário | B31: 150000 | C31: 150000 | D31: 21317.76 | E31: 39267.72 | F31: 21317.76 | G31: 39267.72 | H31: =G31/G95 -> 0.003768213717 | I31: =G31/C31 -> 0.2617848 | J31: =C31-G31 -> 110732.28
A33: SAÚDE | B33: =B34+B35+B36+B37+B38+B39 -> 8252371 | C33: 8292471 | D33: 1388892.14 | E33: 3654311.79 | F33: 1262454.07 | G33: 2546116.45 | H33: =G33/G95 -> 0.2443307361 | I33: =G33/C33 -> 0.3070395362 | J33: =C33-G33 -> 5746354.55
A34: Atenção Básica | B34: 7775371 | C34: 7767371 | D34: 1360236.04 | E34: 3377792.24 | F34: 1214073.1 | G34: 2347381.03 | H34: =G34/G95 -> 0.2252596636 | I34: 0.3022104944 | J34: 5419989.97
A35: Assistência Hospitalar e Ambulatorial | B35: 362000 | C35: 362000 | D35: 25000 | E35: 175000 | F35: 25000 | G35: 175000 | H35: =G35/G95 -> 0.01679337126 | I35: 0.4834254144 | J35: 187000
A36: Suporte Profilático e Terapêutico | B36: 68000 | C36: 111100 | D36: 0 | E36: 91049 | F36: 14518.27 | G36: 14518.27 | H36: =G36/G95 -> 0.00139320399 | I36: 0.1306774977 | J36: 96581.73
A37: Vigilância Sanitária | B37: 47000 | C37: 52000 | D37: 3656.1 | E37: 10470.55 | F37: 8862.7 | G37: 9217.15 | H37: =G37/G95 -> 0.0008844972681 | I37: 0.1772528846 | J37: 42782.85
A38: Vigilância Epidemiológica | B38: 0 | C38: 0 | D38: 0 | E38: 0 | F38: 0 | G38: 0 | H38: =G38/G95 -> 0 | J38: 0
A39: Alimentação e Nutrição | B39: 0 | C39: 0 | D39: 0 | E39: 0 | F39: 0 | G39: 0 | H39: =G39/G95 -> 0 | J39: 0
A41: TRABALHO | B41: =B42 -> 20000 | C41: 20000 | D41: 296 | E41: 592 | F41: 296 | G41: 592 | H41: =G41/G95 -> 5.680957592e-05 | I41: =G41/C41 -> 0.0296 | J41: =C41-G41 -> 19408
A42: Fomento ao Trabalho | B42: 20000 | C42: 20000 | D42: 296 | E42: 592 | F42: 296 | G42: 592 | H42: =G42/G95 -> 5.680957592e-05 | I42: =G42/C42 -> 0.0296 | J42: =C42-G42 -> 19408
A44: EDUCAÇÃO | B44: =B45+B46+B47+B48+B49+B50+B51+B52 -> 10168129 | C44: 11564923.03 | D44: 1443465.04 | E44: 6735478 | F44: 1731353.45 | G44: 3191956.78 | H44: =G44/G95 -> 0.3063069443 | I44: =G44/C44 -> 0.2760032878 | J44: =C44-G44 -> 8372966.25
A45: Alimentação e Nutrição | B45: 705000 | C45: 728000 | D45: -114397.25 | E45: 556254.51 | F45: 94676.22 | G45: 115984.17 | H45: =G45/G101 ->  | I45: 0.1593189148 | J45: 612015.83
A46: Ensino Fundamental | B46: 6131600 | C46: 6181600 | D46: 1083667.68 | E46: 3070404.37 | F46: 1047717.87 | G46: 1917931.34 | H46: =G46/G95 -> 0.1840487603 | I46: 0.3102645496 | J46: 4263668.66
A47: Ensino Médio | B47: 327000 | C47: 544290.76 | D47: -8308.49 | E47: 534100.1 | F47: 119307.67 | G47: 146632.4 | H47: =G47/G95 -> 0.01407115618 | I47: 0.2694008621 | J47: 397658.36
A48: Ensino Profissional | B48: 33000 | C48: 36000 | D48: 2781.9 | E48: 8568.17 | F48: 2781.9 | G48: 8568.17 | H48: =G48/G95 -> 0.0008222197705 | I48: 0.2380047222 | J48: 27431.83
A49: Ensino Superior | B49: 546000 | C49: 625000 | D49: 10144.36 | E49: 574091.56 | F49: 85905.91 | G49: 100216.51 | H49: =G49/G95 -> 0.009616988908 | I49: 0.160346416 | J49: 524783.49
A50: Educação Infantil | B50: 2315529 | C50: 3355032.27 | D50: 374576.84 | E50: 1897059.29 | F50: 355963.88 | G50: 877624.19 | H50: =G50/G95 -> 0.08421867915 | I50: 0.2615844258 | J50: 2477408.08
A51: Educação Especial | B51: 60000 | C51: 60000 | D51: 60000 | E51: 60000 | F51: 18000 | G51: 18000 | H51: =G51/G94 ->  | I51: =G51/C51 -> 0.3 | J51: =C51-G51 -> 42000
A52: Educação Básica | B52: 50000 | C52: 35000 | D52: 35000 | E52: 35000 | F52: 7000 | G52: 7000 | H52: =G52/G95 -> 0.0006717348505 | I52: 0.2 | J52: 28000
A54: CULTURA | B54: =B55 -> 343000 | C54: 333000 | D54: 11283.88 | E54: 52594.91 | F54: 13283.88 | G54: 36594.91 | H54: =G54/G95 -> 0.003511725199 | I54: =G54/C54 -> 0.1098946246 | J54: =C54-G54 -> 296405.09
A55: Difusão Cultural | B55: 343000 | C55: 333000 | D55: 11283.88 | E55: 52594.91 | F55: 13283.88 | G55: 36594.91 | H55: =G55/G95 -> 0.003511725199 | I55: =G55/C55 -> 0.1098946246 | J55: =C55-G55 -> 296405.09
A57: URBANISMO | B57: =B58+B59 -> 3747000 | C57: 4110787.84 | D57: 721066.45 | E57: 1771962.09 | F57: 456792.57 | G57: 947746.24 | H57: =G57/G95 -> 0.09094773983 | I57: =G57/C57 -> 0.2305509982 | J57: =C57-G57 -> 3163041.6
A58: Infra-Estrutura Urbana | B58: 300000 | C58: 828460 | D58: 195000 | E58: 528460 | F58: 0 | G58: 0 | H58: =G58/G95 -> 0 | I58: =G58/C58 -> 0 | J58: =C58-G58 -> 828460
A59: Serviços Urbanos | B59: 3447000 | C59: 3282327.84 | D59: 526066.45 | E59: 1243502.09 | F59: 456792.57 | G59: 947746.24 | H59: =G59/G95 -> 0.09094773983 | I59: =G59/C59 -> 0.288742102 | J59: =C59-G59 -> 2334581.6
A61: HABITAÇÃO | B61: =B62 -> 0 | C61: 0 | D61: 0 | E61: 0 | F61: 0 | G61: 0 | H61: =G61/G95 -> 0 | I61: =G61/C61 ->  | J61: =C61-G61 -> 0
A62: Habitação Urbana | B62: 0 | C62: 0 | D62: 0 | E62: 0 | F62: 0 | G62: 0 | H62: =G62/G95 -> 0 | I62: =G62/C62 ->  | J62: =C62-G62 -> 0
A64: SANEAMENTO | B64: =B65+B66 -> 405000 | C64: 798000 | D64: 59730.49 | E64: 196153.7 | F64: 73063.03 | G64: 136157.31 | H64: =G64/G102 ->  | I64: =G64/C64 -> 0.1706231955 | J64: =C64-G64 -> 661842.69
A65: Serviços Urbanos | B65: 0 | C65: 393000 | D65: 0 | E65: 0 | F65: 0 | G65: 0 | H65: =G65/G101 ->  | I65: =G65/C65 -> 0 | J65: =C65-G65 -> 393000
A66: Saneamento Básico Urbano | B66: 405000 | C66: 405000 | D66: 59730.49 | E66: 196153.7 | F66: 73063.03 | G66: 136157.31 | H66: =G66/G102 ->  | I66: =G66/C66 -> 0.3361908889 | J66: =C66-G66 -> 268842.69
A68: GESTÃO AMBIENTAL | B68: =B69 -> 50000 | C68: 50000 | D68: 0 | E68: 0 | F68: 0 | G68: 0 | H68: =G68/G102 ->  | I68: =G68/C68 -> 0 | J68: =C68-G68 -> 50000
A69: Recuperação de Áreas Degradadas | B69: 50000 | C69: 50000 | D69: 0 | E69: 0 | F69: 0 | G69: 0 | H69: =G69/G102 ->  | I69: =G69/C69 -> 0 | J69: =C69-G69 -> 50000
A71: AGRICULTURA | B71: =B72 -> 639000 | C71: 639000 | D71: 101826.42 | E71: 261638.25 | F71: 109782.66 | G71: 223350.33 | H71: =G71/G95 -> 0.0214331715 | I71: =G71/C71 -> 0.3495310329 | J71: =C71-G71 -> 415649.67
A72: Extensão Rural | B72: 639000 | C72: 639000 | D72: 101826.42 | E72: 261638.25 | F72: 109782.66 | G72: 223350.33 | H72: =G72/G95 -> 0.0214331715 | I72: =G72/C72 -> 0.3495310329 | J72: =C72-G72 -> 415649.67
A74: INDÚSTRIA | B74: =B75 -> 0 | C74: 0 | D74: 0 | E74: 0 | F74: 0 | G74: 0 | H74: =G74/G98 ->  | I74: =G74/C74 ->  | J74: =C74-G74 -> 0
A75: Promoção Industrial | B75: 0 | C75: 0 | D75: 0 | E75: 0 | F75: 0 | G75: 0 | H75: =G75/G98 ->  | I75: =G75/C75 ->  | J75: =C75-G75 -> 0
A77: COMÉRCIO E SERVIÇOS | B77: =B78 -> 320000 | C77: 320000 | D77: 0 | E77: 0 | F77: 0 | G77: 0 | H77: =G77/G95 -> 0 | I77: =G77/C77 -> 0 | J77: =C77-G77 -> 320000
A78: Turismo | B78: 320000 | C78: 320000 | D78: 0 | E78: 0 | F78: 0 | G78: 0 | H78: =G78/G95 -> 0 | I78: =G78/C78 -> 0 | J78: =C78-G78 -> 320000
A80: TRANSPORTE | B80: =B81 -> 1699000 | C80: 1684000 | D80: 171171.22 | E80: 825797.64 | F80: 262783.96 | G80: 463190.83 | H80: =G80/G95 -> 0.0444487747 | I80: =G80/C80 -> 0.2750539371 | J80: =C80-G80 -> 1220809.17
A81: Transporte Rodoviário | B81: 1699000 | C81: 1684000 | D81: 171171.22 | E81: 825797.64 | F81: 262783.96 | G81: 463190.83 | H81: =G81/G95 -> 0.0444487747 | I81: =G81/C81 -> 0.2750539371 | J81: =C81-G81 -> 1220809.17
A83: DESPORTO E LAZER | B83: =B84+B85 -> 995000 | C83: 1229750 | D83: 81604.63 | E83: 246279.63 | F83: 78415.91 | G83: 242263.2 | H83: =G83/G95 -> 0.02324809063 | I83: =G83/C83 -> 0.1970019923 | J83: =C83-G83 -> 987486.8
A84: Desporto Comunitário | B84: 995000 | C84: 1229750 | D84: 81604.63 | E84: 246279.63 | F84: 78415.91 | G84: 242263.2 | H84: =G84/G95 -> 0.02324809063 | I84: =G84/C84 -> 0.1970019923 | J84: =C84-G84 -> 987486.8
A85: Lazer | B85: 0 | C85: 0 | D85: 0 | E85: 0 | F85: 0 | G85: 0 | H85: =G85/G95 -> 0 | I85: =G85/C85 ->  | J85: =C85-G85 -> 0
A87: ENCARGOS ESPECIAIS | B87: =B88+B89 -> 450000 | C87: 450000 | D87: 51521.17 | E87: 134398.57 | F87: 61533.2 | G87: 129770.05 | H87: =G87/G95 -> 0.0124530093 | I87: =G87/C87 -> 0.2883778889 | J87: =C87-G87 -> 320229.95
A88: Serviço da Dívida Interna | B88: 100000 | C88: 100000 | D88: 13716.07 | E88: 27454.17 | F88: 13716.07 | G88: 27454.17 | H88: =G88/G95 -> 0.002634560397 | I88: =G88/C88 -> 0.2745417 | J88: =C88-G88 -> 72545.83
A89: Outros Encargos Especiais | B89: 350000 | C89: 350000 | D89: 37805.1 | E89: 106944.4 | F89: 47817.13 | G89: 102315.88 | H89: =G89/G95 -> 0.009818448907 | I89: =G89/C89 -> 0.2923310857 | J89: =C89-G89 -> 247684.12
A91: RESERVA DE CONTINGÊNCIA | B91: =B92 -> 236500 | C91: 0 | D91: 0 | E91: 0 | F91: 0 | G91: 0 | H91: =G91/G95 -> 0 | I91: =G91/C91 ->  | J91: =C91-G91 -> 0
A92: Reserva de Contingência | B92: 236500 | C92: 0 | D92: 0 | E92: 0 | F92: 0 | G92: 0 | H92: =G92/G95 -> 0 | I92: =G92/C92 ->  | J92: =C92-G92 -> 0
A94: DESPESAS (INTRA-ORÇAMENTÁRIAS) (II) | B94: 0 | C94: 0 | D94: 0 | E94: 0 | F94: 0 | G94: 0 | H94: - | I94: =G94/C94 ->  | J94: =C94-G94 -> 0
A95: TOTAL (III) = (I + II) | B95: =B13+B94 -> 36000000 | C95: 38579931.87 | D95: 5306983.6 | E95: 18004597.99 | F95: 5273412.01 | G95: 10420778.37 | H95: - | I95: =G95/C95 -> 0.270108781 | J95: =C95-G95 -> 28159153.5
A96: FONTE:
A97: Departamento de Finanças
A100: LUIZ CARLOS DOS REIS NONATO | C100: CESAR ROBERTO TOQUETON | F100: MISLENE NAGATE ALVES
A101: Prefeito Municipal | C101: Contabilista - CRC 1SP164476/O-7 | F101: Responsável pelo Controle Interno

Sheet Anexo III - RCL
A3: MUNICÍPIO DE SANTO ANTONIO DO ARACANGUÁ
A4: RELATÓRIO RESUMIDO DA EXECUÇÃO ORÇAMENTÁRIA
A5: DEMONSTRATIVO DA RECEITA CORRENTE LÍQUIDA
A6: ORÇAMENTOS FISCAL E DA SEGURIDADE SOCIAL
A7: PERÍODO:- Maio de 2012 a Abril de 2013 - BIMESTRE:- Março - Abril
A9: RREO - Anexo III (LRF, Art. 53, inciso I) | O9: 1
B10: EVOLUÇÃO DA RECEITA REALIZADA NOS ÚLTIMOS 12 MESES | N10: TOTAL | O10: PREVISÃO
A11: ESPECIFICAÇÃO | N11: (ÚLTIMOS | O11: ATUALIZADA
B12: 2012-05-01 | C12: 2012-06-01 | D12: 2012-07-01 | E12: 2012-08-01 | F12: 2012-09-01 | G12: 2012-10-01 | H12: 2012-11-01 | I12: 2012-12-01 | J12: 2013-01-01 | K12: 2013-02-01 | L12: 2013-03-01 | M12: 2013-04-01 | N12: 12 MESES) | O12: <EXERCÍCIO>
A13: RECEITAS CORRENTES (I)
A14: Receita Tributária | B14: =B15+B16+B17+B18+B19 -> 75167.55 | C14: 127234.22 | D14: 435401.22 | E14: 172758.01 | F14: 166345.17 | G14: 158258.23 | H14: 103465.95 | I14: 228566.47 | J14: 124592.48 | K14: 91415.11 | L14: =L15+L16+L17+L18+L19 -> 81603.11 | M14: 71153.85 | N14: =SUM(B14:M14) -> 1835961.37 | O14: =O15+O16+O17+O18+O19 -> 2525000
A15: IPTU | B15: 0 | C15: 32149.78 | D15: 215516.63 | E15: 37927.14 | F15: 34761.71 | G15: 35792.16 | H15: 32380.88 | I15: 46019.61 | J15: 0 | K15: 25.55 | L15: 0 | M15: 0 | N15: 434573.46 | O15: 950000
A16: ISS | B16: 39793.07 | C16: 47235.7 | D16: 23867.59 | E16: 67332.47 | F16: 82032.65 | G16: 69550.64 | H16: 34667.25 | I16: 116357.72 | J16: 29766.62 | K16: 28059.29 | L16: 20331.54 | M16: 42960.18 | N16: 601954.72 | O16: 540000
A17: ITBI | B17: 1117.06 | C17: 216.39 | D17: 133852.7 | E17: 31727.13 | F17: 18184.59 | G17: 12163.5 | H17: 7507.02 | I17: 8072.09 | J17: 66436 | K17: 32404.24 | L17: 15991.26 | M17: 24564.87 | N17: 352236.85 | O17: 500000
A18: IRRF | B18: 31155.4 | C18: 32797.27 | D18: 27169.17 | E18: 29447.72 | F18: 26295.47 | G18: 35462.51 | H18: 23991.35 | I18: 49666.2 | J18: 23587.49 | K18: 28771.51 | L18: 42012.3 | M18: 721.56 | N18: 351077.95 | O18: 420000
A19: Outras Receitas Tributárias | B19: 3102.02 | C19: 14835.08 | D19: 34995.13 | E19: 6323.55 | F19: 5070.75 | G19: 5289.42 | H19: 4919.45 | I19: 8450.85 | J19: 4802.37 | K19: 2154.52 | L19: 3268.01 | M19: 2907.24 | N19: 96118.39 | O19: 115000
A20: Receita de Contribuições | B20: 0 | C20: 0 | D20: 0 | E20: 0 | F20: 0 | G20: 0 | H20: 0 | I20: 0 | J20: 0 | K20: 0 | L20: 0 | M20: 0 | N20: 0 | O20: 0
A21: Receita Patrimonial | B21: 8498.04 | C21: 7088.91 | D21: 7633.03 | E21: 9032.99 | F21: 7841.73 | G21: 10291.35 | H21: 9507.09 | I21: 15964.52 | J21: 7987.27 | K21: 5917.62 | L21: 5525.63 | M21: 6574.45 | N21: 101862.63 | O21: 200000
A22: Receita Agropecuária | B22: 0 | C22: 0 | D22: 0 | E22: 0 | F22: 0 | G22: 0 | H22: 0 | I22: 0 | J22: 0 | K22: 0 | L22: 0 | M22: 0 | N22: 0 | O22: 0
A23: Receita Industrial | B23: 0 | C23: 0 | D23: 0 | E23: 0 | F23: 0 | G23: 0 | H23: 0 | I23: 0 | J23: 0 | K23: 0 | L23: 0 | M23: 0 | N23: 0 | O23: 0
A24: Receita de Serviços | B24: 15638.48 | C24: 14443.61 | D24: 13545.84 | E24: 15783.2 | F24: 9731.96 | G24: 12653.38 | H24: 9721.34 | I24: 22299.01 | J24: 11932.54 | K24: 13265.18 | L24: 23882.91 | M24: 31764.8 | N24: 194662.25 | O24: 363000
A25: Transferências Correntes | B25: =B26+B27+B28+B29+B30+B31+B32+B33 -> 2787963.78 | C25: 2671059.04 | D25: 2879865.59 | E25: 2683273.45 | F25: 2489433.73 | G25: 3656920.13 | H25: 2588199.4 | I25: 3304369.03 | J25: 3091823.16 | K25: 2872318.3 | L25: =L26+L27+L28+L29+L30+L31+L32+L33 -> 2629823 | M25: 3008438.41 | N25: 34663487.02 | O25: =O26+O27+O28+O29+O30+O31+O32+O33 -> 37833000
A26: COTA-PARTE DO F.P.M. | B26: 557846.74 | C26: 476037.92 | D26: 355489.2 | E26: 392274.87 | F26: 343234.75 | G26: 364359.18 | H26: 492491.28 | I26: 800601.94 | J26: 513627.46 | K26: 691030.82 | L26: 397982.42 | M26: 427026.17 | N26: 5812002.75 | O26: 6600000
A27: COTA-PARTE DO I.C.M.S. | B27: 1646977.65 | C27: 1443353.19 | D27: 1751551.37 | E27: 1347247.66 | F27: 1530387.99 | G27: 1862691.69 | H27: 1336204.83 | I27: 1787284.76 | J27: 1517157 | K27: 1396446.36 | L27: 1466713.37 | M27: 1825665.44 | N27: 18911681.31 | O27: 20000000
A28: COTA-PARTE DO I.P.V.A. | B28: 13176.58 | C28: 18682.19 | D28: 16840.94 | E28: 25086.73 | F28: 26634.65 | G28: 29569.28 | H28: 16032.64 | I28: 11303.59 | J28: 165352.98 | K28: 112114.89 | L28: 88667.18 | M28: 75558.99 | N28: 599020.64 | O28: 600000
A29: COTA-PARTE DO I.T.R. | B29: 871.37 | C29: 0 | D29: 2386.19 | E29: 805.82 | F29: 8443.02 | G29: 460016.88 | H29: 77725.69 | I29: 63865.75 | J29: 50064.35 | K29: 474.92 | L29: 164.21 | M29: 680.98 | N29: 665499.18 | O29: 500000
A30: TRANSFERÊNCIAS DA LC 87/1996 | B30: 8675.36 | C30: 0 | D30: 8675.36 | E30: 8675.36 | F30: 0 | G30: 17350.72 | H30: 8675.36 | I30: 17350.72 | J30: 0 | K30: 0 | L30: 0 | M30: 33277.52 | N30: 102680.4 | O30: 120000
A31: TRANSFERÊNCIAS DA LC 61/1989 | B31: 13355.45 | C31: 11645.05 | D31: 11828.27 | E31: 12862.67 | F31: 12392.87 | G31: 13029.37 | H31: 12581.57 | I31: 17239.47 | J31: 15824.81 | K31: 10878.15 | L31: 9104.65 | M31: 9194.63 | N31: 149936.96 | O31: 150000
A32: TRANSFERÊNCIAS DO FUNDEB | B32: 382705.51 | C32: 336430.25 | D32: 390660.35 | E32: 309025.4 | F32: 345224.02 | G32: 415872.11 | H32: 309800.83 | I32: 366741.13 | J32: 498650.25 | K32: 384493.48 | L32: 372976.75 | M32: 418605.18 | N32: 4531185.26 | O32: 4880000
A33: OUTRAS TRANSFÊRENCIAS CORRENTES | B33: 164355.12 | C33: 384910.44 | D33: 342433.91 | E33: 587294.94 | F33: 223116.43 | G33: 494030.9 | H33: 334687.2 | I33: 239981.67 | J33: 331146.31 | K33: 276879.68 | L33: 294214.42 | M33: 218429.5 | N33: 3891480.52 | O33: 4983000
A34: Outras Receitas Correntes | B34: 34407.24 | C34: 46017.82 | D34: 58111.5 | E34: 25592.11 | F34: 14237.14 | G34: 44564.12 | H34: 18571.73 | I34: 15819.54 | J34: 41430.67 | K34: 33120.98 | L34: 28094.39 | M34: 89497.98 | N34: 449465.22 | O34: 543000
A35: TOTAL DAS RECEITAS | B35: =B14+B20+B21+B22+B23+B24+B25+B34 -> 2921675.09 | C35: 2865843.6 | D35: 3394557.18 | E35: 2906439.76 | F35: 2687589.73 | G35: 3882687.21 | H35: 2729465.51 | I35: 3587018.57 | J35: 3277766.12 | K35: 3016037.19 | L35: =L14+L20+L21+L22+L23+L24+L25+L34 -> 2768929.04 | M35: 3207429.49 | N35: 37245438.49 | O35: 41464000
A36: DEDUÇÕES (II)
A37: Transferências Constitucionais e Legais | B37: 0 | C37: 0 | D37: 0 | E37: 0 | F37: 0 | G37: 0 | H37: 0 | I37: 0 | J37: 0 | K37: 0 | L37: 0 | M37: 0 | N37: =SUM(B37:M37) -> 0 | O37: 0
A38: Contrib. Empregadores e Trab. para Seg. Social | B38: 0 | C38: 0 | D38: 0 | E38: 0 | F38: 0 | G38: 0 | H38: 0 | I38: 0 | J38: 0 | K38: 0 | L38: 0 | M38: 0 | N38: 0 | O38: 0
A39: Contrib. para o Plano de Previdência do Servidor | B39: 0 | C39: 0 | D39: 0 | E39: 0 | F39: 0 | G39: 0 | H39: 0 | I39: 0 | J39: 0 | K39: 0 | L39: 0 | M39: 0 | N39: 0 | O39: 0
A40: Compensação Financ. entre Regimes Previdência | B40: 0 | C40: 0 | D40: 0 | E40: 0 | F40: 0 | G40: 0 | H40: 0 | I40: 0 | J40: 0 | K40: 0 | L40: 0 | M40: 0 | N40: 0 | O40: 0
A41: Dedução de Receita para Formação do FUNDEB | B41: 382705.51 | C41: 336430.25 | D41: 390660.35 | E41: 309025.4 | F41: 345224.02 | G41: 415872.11 | H41: 309800.83 | I41: 366741.13 | J41: 498650.25 | K41: 384493.48 | L41: 372976.75 | M41: 418605.18 | N41: 4531185.26 | O41: 4880000
A42: Contribuições para PIS/PASEP | B42: 0 | C42: 0 | D42: 0 | E42: 0 | F42: 0 | G42: 0 | H42: 0 | I42: 0 | J42: 0 | K42: 0 | L42: 0 | M42: 0 | N42: 0 | O42: 0
A43: Outras | B43: 0 | C43: 0 | D43: 0 | E43: 0 | F43: 0 | G43: 0 | H43: 0 | I43: 0 | J43: 0 | K43: 0 | L43: 0 | M43: 0 | N43: 0 | O43: 0
A44: TOTAL DAS DEDUÇÕES | B44: =SUM(B37:B43) -> 382705.51 | C44: 336430.25 | D44: 390660.35 | E44: 309025.4 | F44: 345224.02 | G44: 415872.11 | H44: 309800.83 | I44: 366741.13 | J44: 498650.25 | K44: 384493.48 | L44: 372976.75 | M44: 418605.18 | N44: 4531185.26 | O44: 4880000
A45: RECEITA CORRENTE LÍQUIDA (III) = (I - II) | B45: =B35-B44 -> 2538969.58 | C45: 2529413.35 | D45: 3003896.83 | E45: 2597414.36 | F45: 2342365.71 | G45: 3466815.1 | H45: 2419664.68 | I45: 3220277.44 | J45: 2779115.87 | K45: 2631543.71 | L45: 2395952.29 | M45: 2788824.31 | N45: =N14+N20+N21+N22+N23+N24+N25+N34-N37-N38-N39-N40-N41-N42-N43 -> 32714253.23 | O45: =O14+O20+O21+O22+O23+O24+O25+O34-O37-O38-O39-O40-O41-O42-O43 -> 36584000
A46: FONTE:
A47: Departamento de Finanças
A49: LUIZ CARLOS DOS REIS NONATO | E49: CESAR ROBERTO TOQUETON | J49: MISLENE NAGATE ALVES
A50: Prefeito Municipal | E50: Contabilista - CRC 1SP164476/O-7 | J50: Responsável pelo Controle Interno

Sheet Anexo V - RPPS
A3: MUNICÍPIO DE SANTO ANTONIO DO ARACANGUÁ
A4: RELATÓRIO RESUMIDO DA EXECUÇÃO ORÇAMENTÁRIA
A5: DEMONSTRATIVO DAS RECEITAS E DESPESAS PREVIDENCIÁRIAS DO REGIME PRÓPRIO DE PREVIDÊNCIA DOS SERVIDORES
A6: ORÇAMENTO DA SEGURIDADE SOCIAL
A7: PERÍODO:- Janeiro a Abril de 2013 - BIMESTRE:- Março - Abril
A9: RREO - Anexo V (LRF, Art. 53, inciso II) | H9: 1
B10: PREVISÃO | C10: PREVISÃO | D10: RECEITAS REALIZADAS
A11: RECEITAS | B11: INICIAL | C11: ATUALIZADA | D11: No Bimestre | F11: Até o Bimestre/ | H11: Até o Bimestre/
F12: 2013 | H12: 2012
A13: RECEITAS PREVIDENCIÁRIAS - RPPS (EXCETO INTRA-ORÇAMENTÁRIAS) (I)
A14: RECEITAS CORRENTES | B14: 0 | C14: 0 | D14: 0 | F14: 0 | H14: 0
A15: Receita de Contribuições dos Segurados | B15: 0 | C15: 0 | D15: 0 | F15: 0 | H15: 0
A16: Pessoal Civil | B16: 0 | C16: 0 | D16: 0 | F16: 0 | H16: 0
A17: Ativo | B17: 0 | C17: 0 | D17: 0 | F17: 0 | H17: 0
A18: Inativo | B18: 0 | C18: 0 | D18: 0 | F18: 0 | H18: 0
A19: Pensionista | B19: 0 | C19: 0 | D19: 0 | F19: 0 | H19: 0
A20: Pessoal Militar | B20: 0 | C20: 0 | D20: 0 | F20: 0 | H20: 0
A21: Ativo | B21: 0 | C21: 0 | D21: 0 | F21: 0 | H21: 0
A22: Inativo | B22: 0 | C22: 0 | D22: 0 | F22: 0 | H22: 0
A23: Militar | B23: 0 | C23: 0 | D23: 0 | F23: 0 | H23: 0
A24: Outras Receitas de Contribuições | B24: 0 | C24: 0 | D24: 0 | F24: 0 | H24: 0
A25: Receita Patrimonial | B25: 0 | C25: 0 | D25: 0 | F25: 0 | H25: 0
A26: Receitas Imobiliárias | B26: 0 | C26: 0 | D26: 0 | F26: 0 | H26: 0
A27: Receitas de Valores Mobiliários | B27: 0 | C27: 0 | D27: 0 | F27: 0 | H27: 0
A28: Outras Receitas Patrimoniais | B28: 0 | C28: 0 | D28: 0 | F28: 0 | H28: 0
A29: Receita de Serviços | B29: 0 | C29: 0 | D29: 0 | F29: 0 | H29: 0
A30: Outras Receitas Correntes | B30: 0 | C30: 0 | D30: 0 | F30: 0 | H30: 0
A31: Compensação Previdenciária do RGPS para o RPPS | B31: 0 | C31: 0 | D31: 0 | F31: 0 | H31: 0
A32: Demais Receitas Correntes | B32: 0 | C32: 0 | D32: 0 | F32: 0 | H32: 0
A33: RECEITAS DE CAPITAL | B33: 0 | C33: 0 | D33: 0 | F33: 0 | H33: 0
A34: Alienação de Bens, Direitos e Ativos | B34: 0 | C34: 0 | D34: 0 | F34: 0 | H34: 0
A35: Amortização de Empréstimos | B35: 0 | C35: 0 | D35: 0 | F35: 0 | H35: 0
A36: Outras Receitas de Capital | B36: 0 | C36: 0 | D36: 0 | F36: 0 | H36: 0
A37: (–) DEDUÇÕES DA RECEITA | B37: 0 | C37: 0 | D37: 0 | F37: 0 | H37: 0
A38: RECEITAS PREVIDENCIÁRIAS - RPPS (INTRA-ORÇAMENTÁRIAS) (II) | B38: 0 | C38: 0 | D38: 0 | F38: 0 | H38: 0
A39: TOTAL DAS RECEITAS PREVIDENCIÁRIAS RPPS - (III) = (I + II) | B39: 0 | C39: 0 | D39: 0 | F39: 0 | H39: 0
B41: DOTAÇÃO | C41: DOTAÇÃO | D41: DESPESAS LIQUIDADAS
A42: DESPESAS | B42: INICIAL | C42: ATUALIZADA | D42: No Bimestre | F42: Até o Bimestre/ | H42: Até o Bimestre/
F43: 2013 | H43: 2012
A44: DESPESAS PREVIDENCIÁRIAS - RPPS (EXCETO INTRA-ORÇAMENTÁRIAS) (IV) | B44: =B45+B48+B60 -> 0 | C44: =C45+C48+C60 -> 0 | D44: =D45+D48+D60 -> 0 | F44: =F45+F48+F60 -> 0 | H44: =H45+H48+H60 -> 0
A45: ADMINISTRAÇÃO | B45: 0 | C45: 0 | D45: =D46+D47 -> 0 | F45: =F46+F47 -> 0 | H45: =H46+H47 -> 0
A46: Despesas Correntes | B46: 0 | C46: 0 | D46: 0 | F46: 0 | H46: 0
A47: Despesas de Capital | B47: 0 | C47: 0 | D47: 0 | F47: 0 | H47: 0
A48: PREVIDÊNCIA | B48: =B49+B53+B57 -> 0 | C48: =C49+C53+C57 -> 0 | D48: =D49+D53+D57 -> 0 | F48: =F49+F53+F57 -> 0 | H48: =H49+H53+H57 -> 0
A49: Pessoal Civil | B49: =B50+B51+B52 -> 0 | C49: =C50+C51+C52 -> 0 | D49: =D50+D51+D52 -> 0 | F49: =F50+F51+F52 -> 0 | H49: =H50+H51+H52 -> 0
A50: Aposentadorias | B50: 0 | C50: 0 | D50: 0 | F50: 0 | H50: 0
A51: Pensões | B51: 0 | C51: 0 | D51: 0 | F51: 0 | H51: 0
A52: Outros Benefícios Previdenciários | B52: 0 | C52: 0 | D52: 0 | F52: 0 | H52: 0
A53: Pessoal Militar | B53: 0 | C53: 0 | D53: 0 | F53: 0 | H53: 0
A54: Reformas | B54: 0 | C54: 0 | D54: 0 | F54: 0 | H54: 0
A55: Pensões | B55: 0 | C55: 0 | D55: 0 | F55: 0 | H55: 0
A56: Outros Benefícios Previdenciários | B56: 0 | C56: 0 | D56: 0 | F56: 0 | H56: 0
A57: Outras Despesas Previdenciárias | B57: 0 | C57: 0 | D57: 0 | F57: 0 | H57: 0
A58: Compensação Previdenciária do RPPS para o RGPS | B58: 0 | C58: 0 | D58: 0 | F58: 0 | H58: 0
A59: Demais Despesas Previdenciárias | B59: 0 | C59: 0 | D59: 0 | F59: 0 | H59: 0
A60: DESPESAS PREVIDENCIÁRIAS - RPPS (INTRA-ORÇAMENTÁRIAS) (V) | B60: 0 | C60: 0 | D60: 0 | F60: 0 | H60: 0
A61: TOTAL DAS DESPESAS PREVIDENCIÁRIAS RPPS (VI) = (IV + V) | B61: =B44+B60 -> 0 | C61: =C44+C60 -> 0 | D61: =D44+D60 -> 0 | F61: =F44+F60 -> 0 | H61: =H44+H60 -> 0
A63: RESULTADO PREVIDENCIÁRIO (VII) = (III – VI) | B63: =B39-B61 -> 0 | C63: =C39-C61 -> 0 | D63: =D39-D61 -> 0 | F63: =F39-F61 -> 0
A65: APORTES DE RECURSOS PARA O REGIME PRÓPRIO DE PREVIDÊNCIA DO SERVIDOR | B65: PREVISÃO | C65: PREVISÃO | D65: RECEITAS REALIZADAS
B66: INICIAL | C66: ATUALIZADA | D66: No | F66: Até o Bimestre/ | H66: Até o Bimestre/
D67: Bimestre | F67: <Exercício> | H67: <Exercício Anterior>
A68: TOTAL DOS APORTES PARA O RPPS
A69: Plano Financeiro
A70: Recursos para Cobertura de Insuficiências Financeiras
A71: Recursos para Formação de Reserva
A72: Outros Aportes para o RPPS
A73: Plano Previdenciário
A74: Recursos para Cobertura de Déficit Financeiro
A75: Recursos para Cobertura de Déficit Atuarial
A76: Outros Aportes para o RPPS
A78: RESERVA ORÇAMENTÁRIA DO RPPS | D78: PREVISÃO ORÇAMENTÁRIA
A79: VALOR
A81: BENS E DIREITOS DO RPPS | B81: <MÊS ANTERIOR> | D81: PERÍODO DE REFERÊNCIA
D82: 2013 | G82: 2012
A83: CAIXA | B83: 0 | D83: 0
A84: BANCOS CONTA MOVIMENTO | B84: 0 | D84: 0
A85: INVESTIMENTOS | B85: 0 | D85: 0
A86: OUTROS BENS E DIREITOS | B86: 0 | D86: 0
B88: PREVISÃO | C88: PREVISÃO | D88: RECEITAS REALIZADAS
A89: RECEITAS INTRA-ORÇAMENTÁRIAS - RPPS | B89: INICIAL | C89: ATUALIZADA | D89: No Bimestre | F89: Até o Bimestre/ | H89: Até o Bimestre/
F90: 2013 | H90: 2012
A91: RECEITAS CORRENTES (VIII) | B91: =B92 -> 0 | C91: =C92 -> 0 | D91: 0 | F91: 0 | H91: 0
A92: Receita de Contribuições | B92: =B93+B102+B105+B106 -> 0 | C92: =C93+C102+C105+C106 -> 0 | D92: 0 | F92: 0 | H92: 0
A93: Patronal | B93: =B94+B98 -> 0 | C93: =C94+C98 -> 0 | D93: =D94+D98 -> 0 | F93: =F94+F98 -> 0 | H93: =H94+H98 -> 0
A94: Pessoal Civil | B94: =B95+B96+B97 -> 0 | C94: =C95+C96+C97 -> 0 | D94: =D95+D96+D97 -> 0 | F94: =F95+F96+F97 -> 0 | H94: =H95+H96+H97 -> 0
A95: Ativo | B95: 0 | C95: 0 | D95: 0 | F95: 0 | H95: 0
A96: Inativo | B96: 0 | C96: 0 | D96: 0 | F96: 0 | H96: 0
A97: Pensionista | B97: 0 | C97: 0 | D97: 0 | F97: 0 | H97: 0
A98: Pessoal Militar | B98: 0 | C98: 0 | D98: 0 | F98: 0 | H98: 0
A99: Ativo | B99: 0 | C99: 0 | D99: 0 | F99: 0 | H99: 0
A100: Inativo | B100: 0 | C100: 0 | D100: 0 | F100: 0 | H100: 0
A101: Militar | B101: 0 | C101: 0 | D101: 0 | F101: 0 | H101: 0
A102: Para Cobertura de Déficit Atuarial | B102: 0 | C102: 0 | D102: 0 | F102: 0 | H102: 0
A103: Em Regime de Débitos e Parcelamentos | B103: 0 | C103: 0 | D103: 0 | F103: 0 | H103: 0
A104: Receita Patrimonial | B104: 0 | C104: 0 | D104: 0 | F104: 0 | H104: 0
A105: Receita de Serviços | B105: 0 | C105: 0 | D105: 0 | F105: 0 | H105: 0
A106: Outras Receitas Correntes | B106: 0 | C106: 0 | D106: 0 | F106: 0 | H106: 0
A107: RECEITAS DE CAPITAL (IX) | B107: 0 | C107: 0 | D107: 0 | F107: 0 | H107: 0
A108: Alienação de Bens | B108: 0 | C108: 0 | D108: 0 | F108: 0 | H108: 0
A109: Amortização de Empréstimos | B109: 0 | C109: 0 | D109: 0 | F109: 0 | H109: 0
A110: Outras Receitas de Capital | B110: 0 | C110: 0 | D110: 0 | F110: 0 | H110: 0
A111: DEDUÇÕES DA RECEITA (X) | B111: 0 | C111: 0 | D111: 0 | F111: 0 | H111: 0
A112: TOTAL DAS RECEITAS PREVIDENCIÁRIAS INTRA-ORÇAMENTÁRIAS (XI) = (VIII + IX - X)
B114: DOTAÇÃO | C114: DOTAÇÃO | D114: DESPESAS LIQUIDADAS
A115: DESPESAS INTRA-ORÇAMENTÁRIAS - RPPS | B115: INICIAL | C115: ATUALIZADA | D115: No Bimestre | F115: Até o Bimestre/ | H115: Até o Bimestre/
F116: 2013 | H116: 2012
A117: ADMINISTRAÇÃO (XII) | B117: =B118+B119 -> 0 | C117: =C118+C119 -> 0 | D117: 0 | F117: 0 | H117: 0
A118: Despesas Correntes | B118: 0 | C118: 0 | D118: 0 | F118: 0 | H118: 0
A119: Despesas de Capital | B119: 0 | C119: 0 | D119: 0 | F119: 0 | H119: 0
A120: TOTAL DAS DESPESAS PREVIDENCIÁRIAS INTRA-ORÇAMENTÁRIAS (XIII) = (XII) | B120: =B117 -> 0 | C120: =C117 -> 0 | D120: 0 | F120: 0 | H120: 0
A121: FONTE:
A122: Departamento de Finanças
A125: LUIZ CARLOS DOS REIS NONATO | B125: CESAR ROBERTO TOQUETON | F125: MISLENE NAGATE ALVES
A126: Prefeito Municipal | B126: Contabilista - CRC 1SP164476/O-7 | F126: Responsável pelo Controle Interno

Sheet Anexo VI - Nominal
A3: MUNICÍPIO DE SANTO ANTONIO DO ARACANGUÁ
A4: RELATÓRIO RESUMIDO DA EXECUÇÃO ORÇAMENTÁRIA
A5: DEMONSTRATIVO DO RESULTADO NOMINAL
A6: ORÇAMENTOS FISCAL E DA SEGURIDADE SOCIAL
A7: PERÍODO:- Janeiro a Abril de 2013 - BIMESTRE:- Março - Abril
A9: RREO - ANEXO VI (LRF, art 53, inciso III) | G9: 1
D10: SALDO
A11: DÍVIDA FISCAL LÍQUIDA | B11: Em 31/DEZ/2012 | D11: Em 28/FEV/2013 | F11: Em 30/ABR/2013
B12: (a) | D12: (b) | F12: (c)
A13: DÍVIDA CONSOLIDADA (I) | B13: 190172.54 | D13: 241188.26 | F13: 166144.1
A14: DEDUÇÕES (II) | B14: =B15+B16-B17 -> 1352067.47 | D14: =D15+D16-D17 -> 2017828.73 | F14: =F15+F16-F17 -> 2135027.64
A15: Disponibilidade de Caixa bruta | B15: 1750698.91 | D15: 2014737.48 | F15: 2135027.64
A16: Demais Haveres Financeiros | B16: 4343.42 | D16: 3091.25 | F16: 0
A17: (-) Restos a Pagar Processados (Exceto precatórios) | B17: 402974.86 | D17: 0 | F17: 0
A18: DÍVIDA CONSOLIDADA LÍQUIDA (III) = (I - II) | B18: =B13-B14 -> -1161894.93 | D18: =D13-D14 -> -1776640.47 | F18: =F13-F14 -> -1968883.54
A19: RECEITA DE PRIVATIZAÇÕES (IV) | B19: 0 | D19: 0 | F19: 0
A20: PASSIVOS RECONHECIDOS (V) | B20: =B13 -> 190172.54 | D20: 0 | F20: 0
A21: DÍVIDA FISCAL LÍQUIDA (VI) = (III + IV - V) | B21: =B18+B19-B20 -> -1352067.47 | D21: =D18+D19-D20 -> -1776640.47 | F21: =F18+F19-F20 -> -1968883.54
B23: PERÍODO DE REFERÊNCIA
A24: RESULTADO NOMINAL | C24: No Bimestre | F24: Até o Bimestre
C25: (c-b) | F25: (c-a)
A26: VALOR | B26: =F21-D21 -> -192243.07 | E26: =F21-B21 -> -616816.07
A28: DISCRIMINAÇÃO DA META FISCAL | E28: VALOR CORRENTE
A30: META DE RESULTADO NOMINAL FIXADA NO ANEXO DE METAS FISCAIS DA LDO P/ O EXERCÍCIO DE REFERÊNCIA
E31: 0
A32: REGIME PREVIDENCIÁRIO
D33: SALDO
A34: DÍVIDA FISCAL LÍQUIDA PREVIDENCIÁRIA | B34: Em 31/Dez/2012 | D34: Em 28/Fev/2013 | F34: Em 30/Abr/2013
B35: (a) | D35: (b) | F35: (c)
A36: DÍVIDA CONSOLIDADA PREVIDENCIÁRIA (VII) | B36: NADA A DECLARAR | D36: NADA A DECLARAR | F36: NADA A DECLARAR
A37: Passivo Atuarial
A38: Demais Dívidas
A39: DEDUÇÕES (VIII)
A40: Disponibilidade de Caixa Bruta
A41: Investimentos
A42: Demais Haveres Financeiros
A43: (-) Restos a Pagar Processados
A44: DÍVIDA CONSOLIDADA LÍQUIDA PREVIDENCIÁRIA (IX) = (VII - VIII)
A45: PASSIVOS RECONHECIDOS (X)
A46: DÍVIDA FISCAL LÍQUIDA PREVIDENCIÁRIA (XI) = (IX - X)
A47: FONTE:
A48: Departamento de Finanças
A50: LUIZ CARLOS DOS REIS NONATO | B50: CESAR ROBERTO TOQUETON | E50: MISLENE NAGATE ALVES
A51: Prefeito Municipal | B51: CRC 1SP164476/O-7 | E51: Responsável pelo Controle Interno

Sheet Anexo VII - Primário (E, DF, M)
A3: MUNICÍPIO DE SANTO ANTONIO DO ARACANGUÁ
A4: RELATÓRIO RESUMIDO DA EXECUÇÃO ORÇAMENTÁRIA
A5: DEMONSTRATIVO DO RESULTADO PRIMÁRIO - ESTADOS, DISTRITO FEDERAL E MUNICÍPIOS
A6: ORÇAMENTOS FISCAL E DA SEGURIDADE SOCIAL
A7: PERÍODO:- Janeiro a Abril de 2013 - BIMESTRE:- Março - Abril
A9: RREO - ANEXO VII (LRF, art 53, inciso III) | E9: 1
B10: PREVISÃO | C10: RECEITAS REALIZADAS
A11: RECEITAS PRIMÁRIAS | B11: ATUALIZADA | C11: No Bimestre | D11: Até o Bimestre/ | E11: Até o Bimestre/
D12: 2013 | E12: 2012
A13: RECEITAS PRIMÁRIAS CORRENTES (I) | B13: =B14+B20+B23+B26+B31 -> 35743000 | C13: =C14+C20+C23+C26+C31 -> 5102042.65 | D13: =D14+D20+D23+D26+D31 -> 10483493.66 | E13: =E14+E20+E23+E26+E31 -> 10041603.23
A14: Receitas Tributárias | B14: =B15+B16+B17+B18+B19 -> 2525000 | C14: =C15+C16+C17+C18+C19 -> 152756.96 | D14: =D15+D16+D17+D18+D19 -> 368764.55 | E14: =E15+E16+E17+E18+E19 -> 327686.32
A15: IPTU | B15: 950000 | C15: 0 | D15: 25.55 | E15: 23.61
A16: ISS | B16: 540000 | C16: 63291.72 | D16: 121117.63 | E16: 114707.37
A17: ITBI | B17: 500000 | C17: 40556.13 | D17: 139396.37 | E17: 93051.53
A18: IRRF | B18: 420000 | C18: 42733.86 | D18: 95092.86 | E18: 110349.49
A19: Outras Receitas Tributárias | B19: 115000 | C19: 6175.25 | D19: 13132.14 | E19: 9554.32
A20: Receitas de Contribuições | B20: =B21+B22 -> 0 | C20: =C21+C22 -> 0 | D20: =D21+D22 -> 0 | E20: =E21+E22 -> 0
A21: Receitas Previdenciárias | B21: 0 | C21: 0 | D21: 0 | E21: 0
A22: Outras Receitas de Contribuições | B22: 0 | C22: 0 | D22: 0 | E22: 0
A23: Receita Patrimonial Líquida | B23: =B24+B25 -> 13000 | C23: =C24+C25 -> 738 | D23: =D24+D25 -> 738 | E23: =E24+E25 -> 3428.83
A24: Receita Patrimonial | B24: 200000 | C24: 12100.08 | D24: 26004.97 | E24: 59496.19
A25: (-) Aplicações Financeiras | B25: -187000 | C25: -11362.08 | D25: -25266.97 | E25: -56067.36
A26: Transferências Correntes | B26: =B27+B28+B29+B30 -> 32299000 | C26: =C27+C28+C29+C30 -> 4775307.61 | D26: =D27+D28+D29+D30 -> 9841001.66 | E26: =E27+E28+E29+E30 -> 9555657.05
A27: FPM | B27: 5340000 | C27: 660006.94 | D27: 1623733.62 | E27: 1567161.65
A28: ICMS | B28: 16000000 | C28: 2633903.08 | D28: 4964785.81 | E28: 4517334.15
A29: Convênios | B29: 200000 | C29: 28133.2 | D29: 63175.19 | E29: 109890.11
A30: Outras Transferências Correntes | B30: 10759000 | C30: 1453264.39 | D30: 3189307.04 | E30: 3361271.14
A31: Demais Receitas Correntes | B31: =B32+B33 -> 906000 | C31: =C32+C33 -> 173240.08 | D31: =D32+D33 -> 272989.45 | E31: =E32+E33 -> 154831.03
A32: Dívida Ativa | B32: 415000 | C32: 76203.21 | D32: 147455.24 | E32: 80647.7
A33: Diversas Receitas Correntes | B33: 491000 | C33: 97036.87 | D33: 125534.21 | E33: 74183.33
A34: RECEITAS DE CAPITAL (II) | B34: =B35+B36+B37+B38+B41 -> 70000 | C34: =C35+C36+C37+C38+C41 -> 74767.49 | D34: =D35+D36+D37+D38+D41 -> 174021.33 | E34: =E35+E36+E37+E38+E41 -> 187593.32
A35: Operações de Crédito (III) | B35: 0 | C35: 0 | D35: 0 | E35: 0
A36: Amortização de Empréstimos (IV) | B36: 70000 | C36: 17121.59 | D36: 20212.84 | E36: 17755.93
A37: Alienação de Bens (V) | B37: 0 | C37: 0 | D37: 0 | E37: 0
A38: Transferências de Capital | B38: =B39+B40 -> 0 | C38: =C39+C40 -> 57645.9 | D38: =D39+D40 -> 153808.49 | E38: =E39+E40 -> 169837.39
A39: Convênios | B39: 0 | C39: 57645.9 | D39: 153808.49 | E39: 169837.39
A40: Outras Transferências de Capital | B40: 0 | C40: 0 | D40: 0 | E40: 0
A41: Outras Receitas de Capital | B41: 0 | C41: 0 | D41: 0 | E41: 0
A42: RECEITAS PRIMÁRIAS DE CAPITAL (VI) = (II - III - IV - V) | B42: =B34-B35-B36-B37 -> 0 | C42: =C34-C35-C36-C37 -> 57645.9 | D42: =D34-D35-D36-D37 -> 153808.49 | E42: =E34-E35-E36-E37 -> 169837.39
A43: RECEITA PRIMÁRIA TOTAL (VII) = (I + VI) | B43: =B13+B42 -> 35743000 | C43: =C13+C42 -> 5159688.55 | D43: =D13+D42 -> 10637302.15 | E43: =E13+E42 -> 10211440.62
B45: DOTAÇÃO | C45: DESPESAS LIQUIDADAS
A46: DESPESAS PRIMÁRIAS | B46: ATUALIZADA | C46: No Bimestre | D46: Até o Bimestre/ | E46: Até o Bimestre/
D47: 2013 | E47: 2012
A48: DESPESAS CORRENTES (VIII) | B48: =B49+B50+B51 -> 33510807.84 | C48: =C49+C50+C51 -> 5098797.86 | D48: =D49+D50+D51 -> 9936815.14 | E48: =E49+E50+E51 -> 9266506.41
A49: Pessoal e Encargos Sociais | B49: 19873400 | C49: 3053242.89 | D49: 6420908.76 | E49: 5550557.02
A50: Juros e Encargos da Dívida (IX) | B50: 0 | C50: 0 | D50: 0 | E50: 0
A51: Outras Despesas Correntes | B51: 13637407.84 | C51: 2045554.97 | D51: 3515906.38 | E51: 3715949.39
A52: DESPESAS PRIMÁRIAS CORRENTES (X) = (VIII - IX) | B52: =B48-B50 -> 33510807.84 | C52: =C48-C50 -> 5098797.86 | D52: =D48-D50 -> 9936815.14 | E52: =E48-E50 -> 9266506.41
A53: DESPESAS DE CAPITAL (XI) | B53: =B54+B55+B59 -> 5069124.03 | C53: =C54+C55+C59 -> 174614.15 | D53: =D54+D55+D59 -> 483963.23 | E53: =E54+E55+E59 -> 936949.51
A54: Investimentos | B54: 4809124.03 | C54: 160898.08 | D54: 456509.06 | E54: 879959.05
A55: Inversões Financeiras | B55: =B56+B57+B58 -> 160000 | C55: =C56+C57+C58 -> 0 | D55: =D56+D57+D58 -> 0 | E55: =E56+E57+E58 -> 0
A56: Concessão de Empréstimos (XII) | B56: 0 | C56: 0 | D56: 0 | E56: 0
A57: Aquisição de Título de Capital já Integralizado (XIII) | B57: 0 | C57: 0 | D57: 0 | E57: 0
A58: Demais Inversões Financeiras | B58: 160000 | C58: 0 | D58: 0 | E58: 0
A59: Amortização da Dívida (XIV) | B59: 100000 | C59: 13716.07 | D59: 27454.17 | E59: 56990.46
A60: DESPESAS PRIMÁRIAS DE CAPITAL (XV) = (XI - XII - XIII - XIV) | B60: =B53-B56-B57-B59 -> 4969124.03 | C60: =C53-C56-C57-C59 -> 160898.08 | D60: =D53-D56-D57-D59 -> 456509.06 | E60: =E53-E56-E57-E59 -> 879959.05
A61: RESERVA DE CONTINGÊNCIA (XVI) | B61: 0 | C61: 0 | D61: 0 | E61: 0
A62: RESERVA DO RPPS (XVII) | B62: 0 | C62: 0 | D62: 0 | E62: 0
A63: DESPESA PRIMÁRIA TOTAL (XVIII) = (X + XV + XVI + XVII) | B63: =B52+B60+B61+B62 -> 38479931.87 | C63: =C52+C60+C61+C62 -> 5259695.94 | D63: =D52+D60+D61+D62 -> 10393324.2 | E63: =E52+E60+E61+E62 -> 10146465.46
A65: RESULTADO PRIMÁRIO (XIX) = (VII - XVIII) | B65: =B43-B63 -> -2736931.87 | C65: =C43-C63 -> -100007.39 | D65: =D43-D63 -> 243977.95 | E65: =E43-E63 -> 64975.16
A67: SALDO DE EXERCÍCIOS ANTERIORES | B67: – | C67: – | D67: 1017188.16 | E67: -
A69: DISCRIMINAÇÃO DA META FISCAL | D69: VALOR CORRENTE
A71: META DE RESULTADO PRIMÁRIO FIXADA NO ANEXO DE METAS FISCAIS DA LDO P/ O EXERCÍCIO DE REFERÊNCIA | D71: -87000
A72: FONTE: Departamento de Finanças
A75: LUIZ CARLOS DOS REIS NONATO | B75: CESAR ROBERTO TOQUETON | D75: MISLENE NAGATE ALVES
A76: Prefeito Municipal | B76: CRC 1SP164476/O-7 | D76: Responsável pelo Controle Interno

Sheet Anexo IX - RP
A3: MUNICÍPIO DE SANTO ANTONIO DO ARACANGUÁ
A4: RELATÓRIO RESUMIDO DA EXECUÇÃO ORÇAMENTÁRIA
A5: DEMONSTRATIVO DOS RESTOS A PAGAR POR PODER E ÓRGÃO
A6: ORÇAMENTOS FISCAL E DA SEGURIDADE SOCIAL
A7: PERÍODO:- Janeiro a Abril de 2013 - BIMESTRE:- Março - Abril
A9: RREO - ANEXO IX (LRF, art. 53, inciso V) | K9: 1
B10: RESTOS A PAGAR PROCESSADOS | G10: RESTOS A PAGAR NÃO PROCESSADOS
B11: Inscritos | G11: Inscritos
A12: PODER/ÓRGÃO | B12: Em | C12: Em 31 de | G12: Em | H12: Em 31 de
B13: Exercícios | C13: dezembro de | D13: Cancelados | E13: Pagos | F13: A Pagar | G13: Exercícios | H13: dezembro de | I13: Cancelados | J13: Pagos | K13: A Pagar
B14: Anteriores | C14: 2011 | G14: Anteriores | H14: 2011
A16: RESTOS A PAGAR (EXCETO INTRA-ORÇAMENTÁRIOS) (I) | B16: =B18+B22 -> 0 | C16: 402974.86 | D16: 0 | E16: 402974.86 | F16: 0 | G16: 199477.91 | H16: 85816.57 | I16: 0 | J16: 34080 | K16: 251214.48
A18: EXECUTIVO | B18: =B19+B20 -> 0 | C18: 397992.22 | D18: 0 | E18: 397992.22 | F18: 0 | G18: 199477.91 | H18: 80836.57 | I18: 0 | J18: 29100 | K18: 251214.48
A19: Prefeitura Municipal……………………………………………… | B19: 0 | C19: 397992.22 | D19: 0 | E19: 397992.22 | F19: =B19+C19-D19-E19 -> 0 | G19: 199477.91 | H19: 80836.57 | I19: 0 | J19: 29100 | K19: =G19+H19-I19-J19 -> 251214.48
A22: LEGISLATIVO | B22: =B23 -> 0 | C22: 4982.64 | D22: 0 | E22: 4982.64 | F22: 0 | G22: 0 | H22: 4980 | I22: 0 | J22: 4980 | K22: 0
A23: Câmara Municipal………………………………………………… | B23: 0 | C23: 4982.64 | D23: 0 | E23: 4982.64 | F23: =B23+C23-D23-E23 -> 0 | G23: 0 | H23: 4980 | I23: 0 | J23: 4980 | K23: =G23+H23-I23-J23 -> 0
A25: RESTOS A PAGAR (INTRA-ORÇAMENTÁRIOS) (II) | B25: =B26+B27 -> 0 | C25: 0 | D25: 0 | E25: 0 | F25: 0 | G25: 0 | H25: 0 | I25: 0 | J25: 0 | K25: 0
A26: Executivo Municipal…………………………………………….. | B26: 0 | C26: 0 | D26: 0 | E26: 0 | F26: =B26+C26-D26-E26 -> 0 | G26: 0 | H26: 0 | I26: 0 | J26: 0 | K26: 0
A27: Legislativo Municipal……………………………………………. | B27: 0 | C27: 0 | D27: 0 | E27: 0 | F27: =B27+C27-D27-E27 -> 0 | G27: 0 | H27: 0 | I27: 0 | J27: 0 | K27: 0
A29: TOTAL (III) = (I + II) | B29: =B16+B25 -> 0 | C29: 402974.86 | D29: 0 | E29: 402974.86 | F29: 0 | G29: 199477.91 | H29: 85816.57 | I29: 0 | J29: 34080 | K29: 251214.48
A30: FONTE: Departamento de Finanças
A32: LUIZ CARLOS DOS REIS NONATO | C32: CESAR ROBERTO TOQUETON | H32: MISLENE NAGATE ALVES
A33: Prefeito Municipal | C33: Contabilista - CRC 1SP164476/O-7 | H33: Responsável pelo Controle Interno
